[Event "Early-Titled-Tuesday-Blitz-February-13-2024"]
[Site "Chess.com"]
[Date "2024.02.13"]
[Round "2"]
[White "LeoWin2012"]
[Black "szachmistrz2500"]
[Result "1/2-1/2"]
[WhiteElo "2229"]
[BlackElo "2491"]
[TimeControl "180+1"]
[EndTime "8:18:45 PST"]
[Termination "Game drawn by repetition"]

1. e4 {[%clk 0:02:57.2]} 1... c5 {[%clk 0:02:59.3]} 2. Nf3 {[%clk 0:02:56.2]}
2... Nc6 {[%clk 0:02:59.6]} 3. g3 {[%clk 0:02:52.3]} 3... g6 {[%clk 0:02:58.2]}
4. Bg2 {[%clk 0:02:52.6]} 4... Bg7 {[%clk 0:02:58.4]} 5. O-O {[%clk 0:02:52.9]}
5... e5 {[%clk 0:02:58.2]} 6. d3 {[%clk 0:02:53.4]} 6... Nge7 {[%clk 0:02:57.6]}
7. Be3 {[%clk 0:02:47.4]} 7... d6 {[%clk 0:02:50.8]} 8. Nc3 {[%clk 0:02:40.9]}
8... O-O {[%clk 0:02:50]} 9. h3 {[%clk 0:02:40]} 9... f5 {[%clk 0:02:48.6]} 10.
exf5 {[%clk 0:02:39.8]} 10... Nxf5 {[%clk 0:02:47.4]} 11. Bg5 {[%clk 0:02:38.2]}
11... Qd7 {[%clk 0:02:40.6]} 12. Qd2 {[%clk 0:02:23.5]} 12... h6 {[%clk
0:02:39.2]} 13. Be3 {[%clk 0:02:20.5]} 13... b6 {[%clk 0:02:30]} 14. Nd5 {[%clk
0:02:08.6]} 14... Bb7 {[%clk 0:02:27.7]} 15. g4 {[%clk 0:02:02.7]} 15... Nxe3
{[%clk 0:02:23.8]} 16. Qxe3 {[%clk 0:02:03.6]} 16... Nd4 {[%clk 0:02:15.6]} 17.
Nxd4 {[%clk 0:02:00.4]} 17... cxd4 {[%clk 0:02:02.2]} 18. Qe4 {[%clk 0:01:56.5]}
18... g5 {[%clk 0:01:59.1]} 19. Ne7+ {[%clk 0:01:52.3]} 19... Qxe7 {[%clk
0:01:58.9]} 20. Qxb7 {[%clk 0:01:53.2]} 20... Qxb7 {[%clk 0:01:55.7]} 21. Bxb7
{[%clk 0:01:54.1]} 21... Rab8 {[%clk 0:01:52.6]} 22. Bd5+ {[%clk 0:01:54.3]}
22... Kh8 {[%clk 0:01:51.1]} 23. b4 {[%clk 0:01:45.9]} 23... Rbc8 {[%clk
0:01:50.4]} 24. Rfc1 {[%clk 0:01:45.1]} 24... Rc3 {[%clk 0:01:46.6]} 25. Kg2
{[%clk 0:01:37.9]} 25... Rfc8 {[%clk 0:01:46.2]} 26. Bb3 {[%clk 0:01:37.4]}
26... d5 {[%clk 0:01:37.4]} 27. Bxd5 {[%clk 0:01:20.2]} 27... Rxc2 {[%clk
0:01:36.6]} 28. Rxc2 {[%clk 0:01:21.1]} 28... Rxc2 {[%clk 0:01:36.6]} 29. a4
{[%clk 0:01:11.4]} 29... Rc3 {[%clk 0:01:30.2]} 30. b5 {[%clk 0:00:48.7]} 30...
Rxd3 {[%clk 0:01:24.2]} 31. a5 {[%clk 0:00:48.7]} 31... Bf8 {[%clk 0:01:05.5]}
32. axb6 {[%clk 0:00:43.8]} 32... axb6 {[%clk 0:01:06.4]} 33. Ra8 {[%clk
0:00:38.8]} 33... Kg7 {[%clk 0:01:03.3]} 34. Ra7+ {[%clk 0:00:39.2]} 34... Kh8
{[%clk 0:01:01]} 35. Ra8 {[%clk 0:00:39.5]} 35... Kg7 {[%clk 0:00:58.7]} 36.
Ra7+ {[%clk 0:00:38]} 36... Kh8 {[%clk 0:00:58.2]} 37. Ra8 {[%clk 0:00:16.3]}
1/2-1/2

[Event "Early-Titled-Tuesday-Blitz-February-13-2024"]
[Site "Chess.com"]
[Date "2024.02.13"]
[Round "2"]
[White "Andrey_Klymchuk"]
[Black "Thormento16"]
[Result "1-0"]
[WhiteElo "2755"]
[BlackElo "2459"]
[TimeControl "180+1"]
[EndTime "8:18:49 PST"]
[Termination "Andrey_Klymchuk won by resignation"]

1. e4 {[%clk 0:03:00.9]} 1... c6 {[%clk 0:02:58.6]} 2. d4 {[%clk 0:03:00.6]}
2... d5 {[%clk 0:02:59.5]} 3. e5 {[%clk 0:03:00.9]} 3... c5 {[%clk 0:02:59.2]}
4. dxc5 {[%clk 0:02:59.3]} 4... e6 {[%clk 0:02:58.3]} 5. Qg4 {[%clk 0:02:58.8]}
5... h5 {[%clk 0:02:50.4]} 6. Qg3 {[%clk 0:02:54.8]} 6... Nc6 {[%clk 0:02:49.9]}
7. Nf3 {[%clk 0:02:53]} 7... h4 {[%clk 0:02:49]} 8. Qg4 {[%clk 0:02:52.2]} 8...
Nh6 {[%clk 0:02:46.1]} 9. Bxh6 {[%clk 0:02:51.7]} 9... Rxh6 {[%clk 0:02:46.2]}
10. Bd3 {[%clk 0:02:49.9]} 10... f5 {[%clk 0:02:35.2]} 11. exf6 {[%clk
0:02:32.3]} 11... Qxf6 {[%clk 0:02:34.5]} 12. Nc3 {[%clk 0:02:24.3]} 12... Bxc5
{[%clk 0:02:23.9]} 13. O-O-O {[%clk 0:02:23.4]} 13... Bd7 {[%clk 0:02:14.2]} 14.
Na4 {[%clk 0:01:34.8]} 14... Bd6 {[%clk 0:02:04.7]} 15. c4 {[%clk 0:01:30.2]}
15... O-O-O {[%clk 0:01:57.9]} 16. Kb1 {[%clk 0:01:19.3]} 16... Nb4 {[%clk
0:01:46]} 17. c5 {[%clk 0:01:05.2]} 17... Bxa4 {[%clk 0:01:37.5]} 18. Qxb4
{[%clk 0:01:03.1]} 18... Bxd1 {[%clk 0:01:34.6]} 19. cxd6 {[%clk 0:01:00]} 19...
Bxf3 {[%clk 0:01:30.8]} 20. Rc1+ {[%clk 0:00:59.3]} 20... Kb8 {[%clk 0:01:30.6]}
21. Rc7 {[%clk 0:00:59.1]} 21... d4 {[%clk 0:01:24]} 22. Ba6 {[%clk 0:00:43.7]}
22... Be4+ {[%clk 0:01:05.7]} 23. Ka1 {[%clk 0:00:43.4]} 23... b6 {[%clk
0:01:04.3]} 24. Qc4 {[%clk 0:00:40.9]} 24... Rhh8 {[%clk 0:00:21.7]} 25. Rb7+
{[%clk 0:00:39]} 25... Ka8 {[%clk 0:00:20.4]} 26. Qc7 {[%clk 0:00:38.6]} 1-0

[Event "Early-Titled-Tuesday-Blitz-February-13-2024"]
[Site "Chess.com"]
[Date "2024.02.13"]
[Round "2"]
[White "GM4life"]
[Black "GMthekingindian"]
[Result "1-0"]
[WhiteElo "2552"]
[BlackElo "2344"]
[TimeControl "180+1"]
[EndTime "8:18:51 PST"]
[Termination "GM4life won on time"]

1. d4 {[%clk 0:03:00.9]} 1... d5 {[%clk 0:02:59.3]} 2. Nf3 {[%clk 0:02:59.5]}
2... c6 {[%clk 0:02:58.3]} 3. Bf4 {[%clk 0:02:56.9]} 3... Bf5 {[%clk 0:02:55.7]}
4. e3 {[%clk 0:02:56.8]} 4... e6 {[%clk 0:02:55.9]} 5. c4 {[%clk 0:02:57]} 5...
Nd7 {[%clk 0:02:54.2]} 6. Nc3 {[%clk 0:02:57.4]} 6... Ngf6 {[%clk 0:02:40.5]} 7.
Qb3 {[%clk 0:02:53]} 7... Qb6 {[%clk 0:02:21.6]} 8. c5 {[%clk 0:02:51.2]} 8...
Qxb3 {[%clk 0:02:21.7]} 9. axb3 {[%clk 0:02:52.1]} 9... a6 {[%clk 0:02:22.2]}
10. b4 {[%clk 0:02:51.2]} 10... Be7 {[%clk 0:01:54.3]} 11. h3 {[%clk 0:02:50.3]}
11... Ne4 {[%clk 0:01:39.4]} 12. Nxe4 {[%clk 0:02:44.7]} 12... Bxe4 {[%clk
0:01:38.9]} 13. Nd2 {[%clk 0:02:45.3]} 13... Bg6 {[%clk 0:01:36.7]} 14. Nb3
{[%clk 0:02:36.5]} 14... f6 {[%clk 0:01:36.3]} 15. Bh2 {[%clk 0:02:27.4]} 15...
e5 {[%clk 0:01:33.3]} 16. b5 {[%clk 0:02:22.6]} 16... Bc2 {[%clk 0:01:11.1]} 17.
Nd2 {[%clk 0:02:02.2]} 17... O-O {[%clk 0:00:55.4]} 18. bxc6 {[%clk 0:02:00]}
18... bxc6 {[%clk 0:00:56.3]} 19. Be2 {[%clk 0:01:04.8]} 19... Rfb8 {[%clk
0:00:53.7]} 20. O-O {[%clk 0:01:03.3]} 20... a5 {[%clk 0:00:47.8]} 21. Ra2
{[%clk 0:00:53.2]} 21... a4 {[%clk 0:00:34.3]} 22. Rc1 {[%clk 0:00:51.2]} 22...
Bb3 {[%clk 0:00:31.4]} 23. Ra3 {[%clk 0:00:50.6]} 23... Bd8 {[%clk 0:00:07.6]}
24. Nxb3 {[%clk 0:00:48.1]} 24... axb3 {[%clk 0:00:07.1]} 25. Rca1 {[%clk
0:00:48.6]} 25... Rxa3 {[%clk 0:00:07.1]} 26. Rxa3 {[%clk 0:00:49]} 26... Bc7
{[%clk 0:00:01.7]} 27. Ra7 {[%clk 0:00:49]} 27... Rc8 {[%clk 0:00:01.9]} 28. Bg4
{[%clk 0:00:48.4]} 1-0

[Event "Early-Titled-Tuesday-Blitz-February-13-2024"]
[Site "Chess.com"]
[Date "2024.02.13"]
[Round "2"]
[White "ansko1999"]
[Black "Bigfish1995"]
[Result "0-1"]
[WhiteElo "2690"]
[BlackElo "3173"]
[TimeControl "180+1"]
[EndTime "8:18:56 PST"]
[Termination "Bigfish1995 won by resignation"]

1. e4 {[%clk 0:03:00.9]} 1... c6 {[%clk 0:02:55.1]} 2. d4 {[%clk 0:03:00]} 2...
d5 {[%clk 0:02:55.8]} 3. Nd2 {[%clk 0:03:00.1]} 3... a6 {[%clk 0:02:43.2]} 4.
Ngf3 {[%clk 0:02:54.3]} 4... Bg4 {[%clk 0:02:41.6]} 5. Bd3 {[%clk 0:02:47.4]}
5... e6 {[%clk 0:02:36.5]} 6. h3 {[%clk 0:02:44.2]} 6... Bh5 {[%clk 0:02:35.3]}
7. c3 {[%clk 0:02:40]} 7... Nd7 {[%clk 0:02:31.6]} 8. e5 {[%clk 0:02:27.8]} 8...
c5 {[%clk 0:02:26]} 9. O-O {[%clk 0:02:22.3]} 9... cxd4 {[%clk 0:02:23.4]} 10.
cxd4 {[%clk 0:02:22]} 10... Ne7 {[%clk 0:02:23.9]} 11. Nb3 {[%clk 0:02:18.9]}
11... Nc6 {[%clk 0:02:21.9]} 12. Be3 {[%clk 0:02:15]} 12... Be7 {[%clk
0:02:16.8]} 13. Rc1 {[%clk 0:02:14.6]} 13... O-O {[%clk 0:02:11.8]} 14. Be2
{[%clk 0:02:01.9]} 14... Rc8 {[%clk 0:02:04.2]} 15. Qd2 {[%clk 0:01:34.8]} 15...
Qb6 {[%clk 0:01:47.5]} 16. Nc5 {[%clk 0:01:00.6]} 16... Bxc5 {[%clk 0:01:26.6]}
17. dxc5 {[%clk 0:01:01.5]} 17... Qc7 {[%clk 0:01:26.3]} 18. g4 {[%clk 0:00:47]}
18... Bg6 {[%clk 0:01:23.9]} 19. Bf4 {[%clk 0:00:47.3]} 19... Be4 {[%clk
0:00:59.9]} 20. Ng5 {[%clk 0:00:39.4]} 20... Ndxe5 {[%clk 0:00:53]} 21. Nxe4
{[%clk 0:00:38]} 21... dxe4 {[%clk 0:00:53.9]} 22. Qc3 {[%clk 0:00:26.3]} 22...
Nf3+ {[%clk 0:00:48.3]} 23. Bxf3 {[%clk 0:00:19.6]} 23... Qxf4 {[%clk
0:00:48.1]} 24. Bg2 {[%clk 0:00:20.1]} 24... f5 {[%clk 0:00:48]} 25. gxf5 {[%clk
0:00:12]} 25... exf5 {[%clk 0:00:47]} 26. b4 {[%clk 0:00:12]} 26... Rf6 {[%clk
0:00:45.6]} 27. a4 {[%clk 0:00:10.8]} 27... Rg6 {[%clk 0:00:45.4]} 28. Qe3
{[%clk 0:00:06.8]} 28... Qf3 {[%clk 0:00:42.9]} 0-1

[Event "Early-Titled-Tuesday-Blitz-February-13-2024"]
[Site "Chess.com"]
[Date "2024.02.13"]
[Round "2"]
[White "Ready4abattle"]
[Black "SergioMoralesG"]
[Result "0-1"]
[WhiteElo "2245"]
[BlackElo "2509"]
[TimeControl "180+1"]
[EndTime "8:18:57 PST"]
[Termination "SergioMoralesG won by resignation"]

1. e4 {[%clk 0:03:00.9]} 1... c5 {[%clk 0:02:56.1]} 2. Nf3 {[%clk 0:03:01.1]}
2... e6 {[%clk 0:02:55.7]} 3. d4 {[%clk 0:03:01.5]} 3... cxd4 {[%clk 0:02:56.6]}
4. Nxd4 {[%clk 0:03:01.9]} 4... Nc6 {[%clk 0:02:57.3]} 5. Nc3 {[%clk 0:03:02]}
5... Qc7 {[%clk 0:02:58]} 6. f4 {[%clk 0:02:59.5]} 6... a6 {[%clk 0:02:57.3]} 7.
Be3 {[%clk 0:02:51.2]} 7... b5 {[%clk 0:02:57.2]} 8. Qd2 {[%clk 0:02:45.7]} 8...
Bb7 {[%clk 0:02:57.1]} 9. Bd3 {[%clk 0:02:44]} 9... d6 {[%clk 0:02:53.5]} 10.
O-O-O {[%clk 0:02:36.1]} 10... Nf6 {[%clk 0:02:52.8]} 11. a3 {[%clk 0:02:26.7]}
11... Rc8 {[%clk 0:02:49.7]} 12. Kb1 {[%clk 0:02:25.9]} 12... b4 {[%clk
0:02:37.7]} 13. axb4 {[%clk 0:02:25.5]} 13... Nxb4 {[%clk 0:02:37.8]} 14. h3
{[%clk 0:02:21.6]} 14... e5 {[%clk 0:02:30.2]} 15. Nb3 {[%clk 0:02:07.8]} 15...
Be7 {[%clk 0:02:11.5]} 16. g4 {[%clk 0:02:06.7]} 16... exf4 {[%clk 0:01:52.4]}
17. Bxf4 {[%clk 0:02:05.7]} 17... O-O {[%clk 0:01:51.5]} 18. Rhe1 {[%clk
0:01:57.3]} 18... Nd7 {[%clk 0:01:39.7]} 19. Nd5 {[%clk 0:01:41.6]} 19... Bxd5
{[%clk 0:01:25.1]} 20. exd5 {[%clk 0:01:42.5]} 20... Nxd3 {[%clk 0:01:25.4]} 21.
Qxd3 {[%clk 0:01:37.9]} 21... Bf6 {[%clk 0:01:25.2]} 22. Rd2 {[%clk 0:01:30.2]}
22... a5 {[%clk 0:01:15.8]} 23. Nd4 {[%clk 0:01:23.4]} 23... Rb8 {[%clk
0:01:14.9]} 24. Nb5 {[%clk 0:01:11.9]} 24... Rxb5 {[%clk 0:01:14.4]} 25. Qxb5
{[%clk 0:01:08.7]} 25... Rb8 {[%clk 0:01:15]} 26. Qc6 {[%clk 0:01:03.4]} 26...
Rxb2+ {[%clk 0:00:47.6]} 27. Kc1 {[%clk 0:01:03.3]} 27... Qb8 {[%clk 0:00:47.8]}
28. Rd3 {[%clk 0:00:30.9]} 28... Rb1+ {[%clk 0:00:39.8]} 29. Kd2 {[%clk
0:00:31.4]} 29... Qb4+ {[%clk 0:00:40.5]} 30. c3 {[%clk 0:00:31.8]} 30... Qb2+
{[%clk 0:00:30.5]} 31. Ke3 {[%clk 0:00:27.9]} 31... Rxe1+ {[%clk 0:00:31.4]} 32.
Kf3 {[%clk 0:00:24.8]} 32... Qe2+ {[%clk 0:00:26.7]} 0-1

[Event "Early-Titled-Tuesday-Blitz-February-13-2024"]
[Site "Chess.com"]
[Date "2024.02.13"]
[Round "2"]
[White "Fighterman91"]
[Black "Herzog2012"]
[Result "1-0"]
[WhiteElo "2772"]
[BlackElo "2526"]
[TimeControl "180+1"]
[EndTime "8:18:58 PST"]
[Termination "Fighterman91 won on time"]

1. e4 {[%clk 0:03:00.9]} 1... c5 {[%clk 0:02:59.1]} 2. Nf3 {[%clk 0:03:01.4]}
2... d6 {[%clk 0:02:59.4]} 3. Bc4 {[%clk 0:03:00.6]} 3... Nc6 {[%clk 0:02:53.1]}
4. d3 {[%clk 0:02:58.7]} 4... Nf6 {[%clk 0:02:50.3]} 5. O-O {[%clk 0:02:57.7]}
5... Bg4 {[%clk 0:02:49.3]} 6. h3 {[%clk 0:02:55.5]} 6... Bxf3 {[%clk
0:02:45.7]} 7. Qxf3 {[%clk 0:02:56.4]} 7... g6 {[%clk 0:02:43.3]} 8. c3 {[%clk
0:02:55.8]} 8... Bg7 {[%clk 0:02:42.9]} 9. Bb3 {[%clk 0:02:53.4]} 9... O-O
{[%clk 0:02:39.1]} 10. Nd2 {[%clk 0:02:53.8]} 10... b5 {[%clk 0:02:34.1]} 11.
Rd1 {[%clk 0:02:42.8]} 11... Qc7 {[%clk 0:02:30.8]} 12. Nf1 {[%clk 0:02:41.3]}
12... c4 {[%clk 0:02:20.6]} 13. dxc4 {[%clk 0:02:37.4]} 13... bxc4 {[%clk
0:02:18.9]} 14. Bc2 {[%clk 0:02:38]} 14... Nd7 {[%clk 0:02:04.9]} 15. Qe2 {[%clk
0:02:38.2]} 15... Nb6 {[%clk 0:01:42.1]} 16. Bg5 {[%clk 0:02:23]} 16... e6
{[%clk 0:01:33.4]} 17. Ne3 {[%clk 0:02:20.3]} 17... Na5 {[%clk 0:01:30.4]} 18.
Rd2 {[%clk 0:02:17.6]} 18... Qc5 {[%clk 0:01:04.9]} 19. Be7 {[%clk 0:02:16.8]}
19... Rfe8 {[%clk 0:00:59.2]} 20. Bxd6 {[%clk 0:02:17.2]} 20... Qb5 {[%clk
0:00:59.2]} 21. Ba3 {[%clk 0:02:17.7]} 21... Rad8 {[%clk 0:00:52.4]} 22. Rad1
{[%clk 0:02:17]} 22... Rxd2 {[%clk 0:00:51.4]} 23. Rxd2 {[%clk 0:02:16.6]} 23...
Bf8 {[%clk 0:00:48.8]} 24. Bxf8 {[%clk 0:02:13.9]} 24... Rxf8 {[%clk 0:00:47.8]}
25. b4 {[%clk 0:02:06.8]} 25... Nc6 {[%clk 0:00:45.7]} 26. Qd1 {[%clk
0:01:49.6]} 26... Qe5 {[%clk 0:00:36.5]} 27. Rd6 {[%clk 0:01:45.9]} 27... Rc8
{[%clk 0:00:27]} 28. Qd2 {[%clk 0:01:35.3]} 28... Qf4 {[%clk 0:00:20.6]} 29. g3
{[%clk 0:01:25.6]} 29... Qf3 {[%clk 0:00:16.1]} 30. Ng4 {[%clk 0:01:24.4]} 30...
h5 {[%clk 0:00:11.4]} 31. Bd1 {[%clk 0:01:24.9]} 31... hxg4 {[%clk 0:00:04.9]}
32. Bxf3 {[%clk 0:01:24.2]} 32... gxf3 {[%clk 0:00:05.8]} 33. b5 {[%clk
0:01:15.5]} 33... Ne5 {[%clk 0:00:02.3]} 34. Rd8+ {[%clk 0:01:16.2]} 34... Rxd8
{[%clk 0:00:01.4]} 35. Qxd8+ {[%clk 0:01:17.1]} 35... Kg7 {[%clk 0:00:02.2]} 36.
Qc7 {[%clk 0:01:17.8]} 36... Nd3 {[%clk 0:00:01.7]} 37. Qxa7 {[%clk 0:01:18.5]}
37... Nc8 {[%clk 0:00:01.9]} 38. Qd4+ {[%clk 0:01:18.3]} 38... Kf8 {[%clk
0:00:01.7]} 39. Qh8+ {[%clk 0:01:17.9]} 1-0

[Event "Early-Titled-Tuesday-Blitz-February-13-2024"]
[Site "Chess.com"]
[Date "2024.02.13"]
[Round "2"]
[White "Zohid6"]
[Black "valorant64"]
[Result "1/2-1/2"]
[WhiteElo "2845"]
[BlackElo "2599"]
[TimeControl "180+1"]
[EndTime "8:18:59 PST"]
[Termination "Game drawn by repetition"]

1. e4 {[%clk 0:03:00.9]} 1... e6 {[%clk 0:02:57.2]} 2. d4 {[%clk 0:03:00.6]}
2... d5 {[%clk 0:02:57.4]} 3. Nc3 {[%clk 0:03:00.9]} 3... Bb4 {[%clk 0:02:56.5]}
4. e5 {[%clk 0:02:59.8]} 4... Ne7 {[%clk 0:02:56.2]} 5. a3 {[%clk 0:02:58.4]}
5... Bxc3+ {[%clk 0:02:56.8]} 6. bxc3 {[%clk 0:02:59.3]} 6... c5 {[%clk
0:02:57.4]} 7. Qg4 {[%clk 0:02:58.9]} 7... cxd4 {[%clk 0:02:56.7]} 8. cxd4
{[%clk 0:02:55]} 8... Qc7 {[%clk 0:02:55.8]} 9. Bd2 {[%clk 0:02:54.4]} 9... Qxc2
{[%clk 0:02:48]} 10. Qxg7 {[%clk 0:02:46.9]} 10... Rg8 {[%clk 0:02:48.1]} 11.
Qh6 {[%clk 0:02:46]} 11... Nbc6 {[%clk 0:02:48.2]} 12. Nf3 {[%clk 0:02:46.1]}
12... Qb2 {[%clk 0:02:42.7]} 13. Rd1 {[%clk 0:02:28.7]} 13... Nxd4 {[%clk
0:02:38.7]} 14. Nxd4 {[%clk 0:02:28.2]} 14... Qxd4 {[%clk 0:02:38.3]} 15. Bb5+
{[%clk 0:02:28.6]} 15... Bd7 {[%clk 0:02:37.6]} 16. Bxd7+ {[%clk 0:02:28.7]}
16... Kxd7 {[%clk 0:02:38.5]} 17. O-O {[%clk 0:02:26.7]} 17... Qxe5 {[%clk
0:02:35]} 18. Rfe1 {[%clk 0:02:05.3]} 18... Qg7 {[%clk 0:02:32.3]} 19. Qh3
{[%clk 0:02:04.8]} 19... Nc6 {[%clk 0:02:28.7]} 20. Bf4 {[%clk 0:02:03.1]} 20...
d4 {[%clk 0:02:22.1]} 21. Qf3 {[%clk 0:01:52.3]} 21... Rad8 {[%clk 0:02:20]} 22.
Bg3 {[%clk 0:01:42.4]} 22... Kc8 {[%clk 0:02:18.7]} 23. Rc1 {[%clk 0:01:30.2]}
23... Rd5 {[%clk 0:02:17.8]} 24. Qf4 {[%clk 0:01:24.8]} 24... e5 {[%clk
0:02:15.4]} 25. Qf5+ {[%clk 0:01:24.7]} 25... Rd7 {[%clk 0:02:04.1]} 26. Rxe5
{[%clk 0:01:15.8]} 26... Qg6 {[%clk 0:02:03.8]} 27. Qf3 {[%clk 0:00:49.5]} 27...
d3 {[%clk 0:01:54.9]} 28. Rec5 {[%clk 0:00:49.5]} 28... d2 {[%clk 0:01:36]} 29.
Rxc6+ {[%clk 0:00:49.3]} 29... bxc6 {[%clk 0:01:35.6]} 30. Rxc6+ {[%clk
0:00:50.2]} 30... Kd8 {[%clk 0:01:29.4]} 31. Bh4+ {[%clk 0:00:49.8]} 31... f6
{[%clk 0:01:28.8]} 32. Bxf6+ {[%clk 0:00:46]} 32... Ke8 {[%clk 0:01:28.5]} 33.
Qe3+ {[%clk 0:00:41.4]} 33... Kf8 {[%clk 0:01:24.6]} 34. Qc5+ {[%clk 0:00:41.3]}
34... Ke8 {[%clk 0:01:18.5]} 35. Qe5+ {[%clk 0:00:24.5]} 35... Kf8 {[%clk
0:01:14.2]} 36. Qc5+ {[%clk 0:00:14.9]} 36... Ke8 {[%clk 0:01:14.1]} 37. Qe3+
{[%clk 0:00:14.4]} 37... Kf8 {[%clk 0:01:12.8]} 38. Qc5+ {[%clk 0:00:03.9]}
1/2-1/2

[Event "Early-Titled-Tuesday-Blitz-February-13-2024"]
[Site "Chess.com"]
[Date "2024.02.13"]
[Round "2"]
[White "Ykow"]
[Black "VeraVujovic"]
[Result "1-0"]
[WhiteElo "2509"]
[BlackElo "2242"]
[TimeControl "180+1"]
[EndTime "8:18:59 PST"]
[Termination "Ykow won by resignation"]

1. d4 {[%clk 0:03:00.9]} 1... d5 {[%clk 0:02:59.3]} 2. c4 {[%clk 0:03:01.3]}
2... dxc4 {[%clk 0:02:50.3]} 3. Nc3 {[%clk 0:03:02.2]} 3... Nf6 {[%clk 0:02:48]}
4. e4 {[%clk 0:03:00.8]} 4... e5 {[%clk 0:02:47.7]} 5. Bxc4 {[%clk 0:02:59.9]}
5... exd4 {[%clk 0:02:42.8]} 6. Qb3 {[%clk 0:02:56.3]} 6... Qe7 {[%clk
0:01:58.8]} 7. Nb5 {[%clk 0:02:47.9]} 7... Nxe4 {[%clk 0:01:50]} 8. Ne2 {[%clk
0:02:45.1]} 8... Nc5 {[%clk 0:01:34.5]} 9. Qg3 {[%clk 0:02:43.6]} 9... d3 {[%clk
0:01:25.3]} 10. Bxd3 {[%clk 0:02:34.4]} 10... Nxd3+ {[%clk 0:01:25]} 11. Qxd3
{[%clk 0:02:35.3]} 11... a6 {[%clk 0:01:12.9]} 12. Bg5 {[%clk 0:02:34]} 12... f6
{[%clk 0:01:03.8]} 13. O-O-O {[%clk 0:02:30.5]} 13... axb5 {[%clk 0:01:00.1]}
14. Rhe1 {[%clk 0:02:29.5]} 14... Qc5+ {[%clk 0:00:45]} 15. Nc3+ {[%clk
0:02:27.4]} 15... Kf7 {[%clk 0:00:42.6]} 16. Be3 {[%clk 0:02:27.3]} 16... Qc6
{[%clk 0:00:41.6]} 17. Kb1 {[%clk 0:02:11.3]} 17... b4 {[%clk 0:00:41.5]} 18.
Nb5 {[%clk 0:02:10.8]} 18... Be6 {[%clk 0:00:39]} 19. b3 {[%clk 0:02:07.1]}
19... Ra5 {[%clk 0:00:35.1]} 20. Nd4 {[%clk 0:02:01.3]} 20... Qc3 {[%clk
0:00:32]} 21. Qe2 {[%clk 0:02:00.3]} 21... Bd5 {[%clk 0:00:23.6]} 22. f3 {[%clk
0:01:32]} 22... Qc5 {[%clk 0:00:23.7]} 23. Nf5 {[%clk 0:01:20.8]} 23... Qc6
{[%clk 0:00:23.3]} 24. Bf4 {[%clk 0:01:16.1]} 24... Bc5 {[%clk 0:00:15.9]} 25.
Ne7 {[%clk 0:01:12.4]} 25... Be4+ {[%clk 0:00:12.4]} 26. fxe4 {[%clk 0:01:01.8]}
26... Bxe7 {[%clk 0:00:12.6]} 27. e5 {[%clk 0:01:00.5]} 27... fxe5 {[%clk
0:00:08]} 28. Bxe5 {[%clk 0:01:01.4]} 28... Qg6+ {[%clk 0:00:08.2]} 29. Rd3
{[%clk 0:00:54.3]} 29... Rd5 {[%clk 0:00:08.1]} 30. Qf3+ {[%clk 0:00:53.4]}
30... Ke8 {[%clk 0:00:05]} 31. Qxd5 {[%clk 0:00:53.4]} 31... c6 {[%clk
0:00:04.9]} 32. Qe4 {[%clk 0:00:53]} 32... Nd7 {[%clk 0:00:04.9]} 33. Qxg6+
{[%clk 0:00:52.3]} 33... hxg6 {[%clk 0:00:05.8]} 34. Bd6 {[%clk 0:00:53.2]} 1-0

[Event "Early-Titled-Tuesday-Blitz-February-13-2024"]
[Site "Chess.com"]
[Date "2024.02.13"]
[Round "2"]
[White "MKlose11"]
[Black "SantoBlue"]
[Result "0-1"]
[WhiteElo "2642"]
[BlackElo "2961"]
[TimeControl "180+1"]
[EndTime "8:19:01 PST"]
[Termination "SantoBlue won by resignation"]

1. e4 {[%clk 0:03:00.9]} 1... d6 {[%clk 0:02:58.6]} 2. d4 {[%clk 0:02:56.8]}
2... Nf6 {[%clk 0:02:59]} 3. Nc3 {[%clk 0:02:54.4]} 3... e5 {[%clk 0:02:59.6]}
4. Nf3 {[%clk 0:02:48.9]} 4... Nbd7 {[%clk 0:02:59.8]} 5. Bc4 {[%clk 0:02:48.2]}
5... Be7 {[%clk 0:03:00.2]} 6. O-O {[%clk 0:02:31.4]} 6... O-O {[%clk
0:03:00.7]} 7. a4 {[%clk 0:02:31.2]} 7... c6 {[%clk 0:03:00.6]} 8. h3 {[%clk
0:02:27.1]} 8... h6 {[%clk 0:03:01.3]} 9. Qe2 {[%clk 0:02:27.3]} 9... Re8 {[%clk
0:03:01.7]} 10. Re1 {[%clk 0:02:27.2]} 10... exd4 {[%clk 0:03:01.6]} 11. Nxd4
{[%clk 0:02:26.9]} 11... Bf8 {[%clk 0:03:02.3]} 12. Qd1 {[%clk 0:02:26.6]} 12...
Nc5 {[%clk 0:03:01.2]} 13. f3 {[%clk 0:02:23.5]} 13... d5 {[%clk 0:02:58.8]} 14.
exd5 {[%clk 0:02:21.8]} 14... Rxe1+ {[%clk 0:02:59.1]} 15. Qxe1 {[%clk
0:02:22.1]} 15... cxd5 {[%clk 0:02:59.6]} 16. Bf1 {[%clk 0:02:19.2]} 16... Bd7
{[%clk 0:02:56.8]} 17. Be3 {[%clk 0:02:17.4]} 17... Qc7 {[%clk 0:02:55.6]} 18.
Qd2 {[%clk 0:02:13.5]} 18... Re8 {[%clk 0:02:53.9]} 19. Bf2 {[%clk 0:02:10.3]}
19... Bd6 {[%clk 0:02:47.3]} 20. Ndb5 {[%clk 0:02:07.3]} 20... Qb8 {[%clk
0:02:39.5]} 21. Nxd6 {[%clk 0:02:06.2]} 21... Qxd6 {[%clk 0:02:40.4]} 22. Nb5
{[%clk 0:02:04.5]} 22... Bxb5 {[%clk 0:02:38]} 23. Bxb5 {[%clk 0:02:04.3]} 23...
Rc8 {[%clk 0:02:35.9]} 24. Rd1 {[%clk 0:01:58.7]} 24... a6 {[%clk 0:02:30.3]}
25. Bf1 {[%clk 0:01:56.5]} 25... Nxa4 {[%clk 0:02:29.4]} 26. c4 {[%clk 0:01:54]}
26... Rd8 {[%clk 0:01:59.9]} 27. b4 {[%clk 0:01:39.3]} 27... Qe5 {[%clk
0:01:40.5]} 28. Bd4 {[%clk 0:01:33.9]} 28... Qe6 {[%clk 0:01:38]} 29. c5 {[%clk
0:01:30.5]} 29... b5 {[%clk 0:01:37.8]} 30. cxb6 {[%clk 0:01:14.4]} 30... Nxb6
{[%clk 0:01:35.6]} 31. Bxa6 {[%clk 0:01:05.1]} 31... Nc4 {[%clk 0:01:33.1]} 32.
Qa2 {[%clk 0:01:04.9]} 32... Nh5 {[%clk 0:01:29.4]} 33. Bf2 {[%clk 0:00:51.6]}
33... Ra8 {[%clk 0:01:24.6]} 34. b5 {[%clk 0:00:48.8]} 34... Nf4 {[%clk
0:01:25.3]} 35. Qb1 {[%clk 0:00:32.4]} 35... Ne2+ {[%clk 0:01:22.7]} 36. Kh1
{[%clk 0:00:30.3]} 36... Nc3 {[%clk 0:01:23.2]} 37. Qd3 {[%clk 0:00:30.2]} 37...
Nxd1 {[%clk 0:01:22.9]} 38. Qxd1 {[%clk 0:00:31.1]} 38... Re8 {[%clk 0:01:15.7]}
39. Bb7 {[%clk 0:00:28.9]} 39... Qe2 {[%clk 0:01:14.4]} 40. Qxe2 {[%clk
0:00:18]} 40... Rxe2 {[%clk 0:01:15.3]} 41. Bc5 {[%clk 0:00:18.5]} 41... Rb2
{[%clk 0:01:14.3]} 42. Bc6 {[%clk 0:00:17.7]} 42... Ne5 {[%clk 0:01:06.8]} 43.
Bd4 {[%clk 0:00:15.3]} 43... Rb1+ {[%clk 0:01:07]} 44. Kh2 {[%clk 0:00:15.2]}
44... Nxc6 {[%clk 0:01:07.9]} 45. bxc6 {[%clk 0:00:15.7]} 45... Rc1 {[%clk
0:01:08.8]} 46. Kg3 {[%clk 0:00:15.2]} 46... Rxc6 {[%clk 0:01:09.1]} 47. Kf4
{[%clk 0:00:16.1]} 47... Re6 {[%clk 0:01:09.7]} 0-1